[Event "Pervenstvo PFO 2023_Y19_Rapid"]
[Site "Samara region, Russia"]
[Date "2023.11.11"]
[Round "8.8"]
[White "Davydov, Dmitriy"]
[Black "Berezin, Zachar"]
[Result "0-1"]
[TimeControl "10:5"]
[WhiteFideId "54185580"]
[BlackFideId "44139322"]
[WhiteElo "1573"]
[BlackElo "1658"]

1. Nf3 {[%emt 00:03:06]} Nf6 {[%emt 00:00:01]} 2. g3 {[%emt 00:00:02]} b5 3.
Bg2 {[%emt 00:00:03]} Bb7 4. O-O {[%emt 00:00:04]} e6 5. d3 {[%emt 00:00:11]}
Be7 6. e4 {[%emt 00:00:09]} d6 {[%emt 00:00:01]} 7. Nbd2 {[%emt 00:00:58]} O-O
{[%emt 00:00:02]} 8. a4 b4 {[%emt 00:00:01]} 9. c3 c5 {[%emt 00:00:09]} 10. Re1
{[%emt 00:00:31]} Qc7 {[%emt 00:00:20]} 11. Qb3 {[%emt 00:00:15]} a5 {[%emt
00:01:18]} 12. Nc4 {[%emt 00:00:21]} Nbd7 {[%emt 00:00:45]} 13. Bf4 {[%emt
00:00:49]} e5 {[%emt 00:00:07]} 14. Bd2 {[%emt 00:00:08]} Nb6 {[%emt 00:00:36]}
15. Rad1 {[%emt 00:01:34]} Nxc4 {[%emt 00:00:06]} 16. Qxc4 {[%emt 00:00:02]} d5
{[%emt 00:00:28]} 17. exd5 {[%emt 00:01:00]} Bxd5 {[%emt 00:00:08]} 18. Qh4 Ne4
{[%emt 00:03:26]} 19. Qh5 {[%emt 00:02:40]} Nxd2 {[%emt 00:00:23]} 20. Rxd2 Qb7
{[%emt 00:00:49]} 21. Rxe5 {[%emt 00:00:30]} g6 {[%emt 00:00:12]} 22. Qg4
{[%emt 00:01:56]} f5 {[%emt 00:00:02]} 23. Qf4 {[%emt 00:00:22]} Bd6 {[%emt
00:00:34]} 24. Rde2 {[%emt 00:00:11]} Bxe5 {[%emt 00:00:29]} 25. Rxe5 {[%emt
00:00:05]} Rae8 {[%emt 00:00:15]} 26. d4 {[%emt 00:00:05]} bxc3 {[%emt
00:00:05]} 27. bxc3 {[%emt 00:00:07]} Rxe5 {[%emt 00:00:25]} 28. dxe5 {[%emt
00:00:05]} Qb1+ {[%emt 00:00:38]} 29. Bf1 Qe4 {[%emt 00:00:27]} 30. Qxe4 {[%emt
00:00:06]} fxe4 {[%emt 00:00:06]} 31. Ng5 {[%emt 00:00:07]} h6 {[%emt
00:00:04]} 32. Nh3 Rb8 {[%emt 00:00:08]} 33. Nf4 {[%emt 00:00:02]} Ba2 {[%emt
00:00:28]} 34. Bb5 {[%emt 00:00:12]} g5 {[%emt 00:00:02]} 35. Ne2 {[%emt
00:00:04]} Kf7 {[%emt 00:00:06]} 36. Nc1 {[%emt 00:00:01]} Bb1 {[%emt
00:00:07]} 37. Nb3 {[%emt 00:00:02]} Bd3 {[%emt 00:00:04]} 38. Nxc5 {[%emt
00:00:10]} Bxb5 {[%emt 00:00:03]} 39. axb5 {[%emt 00:00:02]} Rxb5 {[%emt
00:00:02]} 40. Nxe4 {[%emt 00:00:02]} Rxe5 {[%emt 00:00:02]} 41. Nd6+ {[%emt
00:00:02]} Ke6 {[%emt 00:00:02]} 42. Nc4 {[%emt 00:00:01]} Rc5 {[%emt
00:00:03]} 43. Nb2 {[%emt 00:00:05]} Rxc3 {[%emt 00:00:02]} 44. Kf1 Rc2 {[%emt
00:00:08]} 45. Na4 {[%emt 00:00:07]} Ra2 {[%emt 00:00:02]} 46. Nc3 {[%emt
00:00:02]} Rc2 {[%emt 00:00:05]} 47. Nb5 {[%emt 00:00:03]} Kd5 {[%emt
00:00:03]} 48. Ke1 {[%emt 00:00:03]} a4 {[%emt 00:00:08]} 49. Na3 {[%emt
00:00:01]} Ra2 {[%emt 00:00:03]} 50. Nb5 {[%emt 00:00:03]} Kc4 {[%emt
00:00:05]} 51. Nd6+ {[%emt 00:00:02]} Kd3 52. f4 {[%emt 00:00:06]} gxf4 {[%emt
00:00:02]} 53. gxf4 Rxh2 {[%emt 00:00:04]} 54. f5 {[%emt 00:00:03]} a3 {[%emt
00:00:05]} 55. Nb7 {[%emt 00:00:18]} a2 {[%emt 00:00:03]} 56. Nc5+ {[%emt
00:00:01]} Ke3 57. Nb3 {[%emt 00:00:01]} Rh1# 0-1

[Event "Pervenstvo PFO 2023_Y19_Rapid"]
[Site "Samara region, Russia"]
[Date "2023.11.11"]
[Round "8.9"]
[White "Kurulev, Egor"]
[Black "Siyalov, Mikhail"]
[Result "0-1"]
[TimeControl "10:5"]
[WhiteFideId "34187097"]
[BlackFideId "24276359"]
[WhiteElo "1332"]
[BlackElo "1691"]

1. e4 {[%clk 00:10:08]} d5 {[%clk 00:10:09]} 2. exd5 {[%clk 00:10:12]} {[%emt
00:00:02]} Qxd5 {[%clk 00:10:13]} 3. d4 {[%clk 00:10:16]} {[%emt 00:00:01]}
Qa5+ {[%clk 00:10:17]} 4. c3 {[%clk 00:10:13]} {[%emt 00:00:07]} Nf6 {[%clk
00:10:19]} {[%emt 00:00:04]} 5. h3 {[%clk 00:10:14]} {[%emt 00:00:03]} Bf5
{[%clk 00:10:22]} {[%emt 00:00:03]} 6. Bd3 {[%clk 00:10:17]} {[%emt 00:00:03]}
Bg6 {[%clk 00:10:25]} {[%emt 00:00:02]} 7. Nf3 {[%clk 00:10:20]} {[%emt
00:00:02]} c6 {[%clk 00:10:28]} {[%emt 00:00:01]} 8. O-O {[%clk 00:10:22]}
{[%emt 00:00:03]} e6 {[%clk 00:10:31]} {[%emt 00:00:02]} 9. Bf4 {[%clk
00:10:17]} {[%emt 00:00:10]} Nbd7 {[%clk 00:10:31]} {[%emt 00:00:06]} 10. b4
{[%clk 00:10:07]} {[%emt 00:00:14]} Qd8 {[%clk 00:10:35]} {[%emt 00:00:01]} 11.
Bxg6 {[%clk 00:09:48]} {[%emt 00:00:25]} hxg6 {[%clk 00:10:38]} {[%emt
00:00:01]} 12. Ne5 {[%clk 00:09:51]} {[%emt 00:00:02]} Nxe5 {[%clk 00:10:28]}
{[%emt 00:00:15]} 13. Bxe5 {[%clk 00:09:53]} {[%emt 00:00:03]} Bd6 {[%clk
00:10:26]} {[%emt 00:00:07]} 14. Qe2 {[%clk 00:09:56]} {[%emt 00:00:02]} Bxe5
{[%clk 00:10:17]} {[%emt 00:00:15]} 15. dxe5 {[%clk 00:09:51]} {[%emt
00:00:10]} Nd7 {[%clk 00:10:19]} {[%emt 00:00:03]} 16. Nd2 {[%clk 00:09:53]}
{[%emt 00:00:03]} Qe7 {[%clk 00:09:02]} {[%emt 00:01:22]} 17. Nc4 {[%clk
00:09:50]} {[%emt 00:00:08]} O-O-O {[%clk 00:08:50]} {[%emt 00:00:17]} 18. b5
{[%clk 00:08:36]} {[%emt 00:01:19]} c5 {[%clk 00:08:37]} {[%emt 00:00:19]} 19.
Qe4 {[%clk 00:08:28]} {[%emt 00:00:12]} Nb6 {[%clk 00:08:25]} {[%emt 00:00:17]}
20. Nd6+ {[%clk 00:08:29]} {[%emt 00:00:05]} Kb8 {[%clk 00:08:29]} 21. a4
{[%clk 00:08:31]} {[%emt 00:00:03]} Nc8 {[%clk 00:08:24]} {[%emt 00:00:09]} 22.
Nc4 {[%clk 00:08:12]} {[%emt 00:00:24]} Qd7 {[%clk 00:04:50]} {[%emt 00:03:39]}
23. Rac1 {[%clk 00:06:23]} {[%emt 00:01:54]} Qd3 {[%clk 00:04:34]} {[%emt
00:00:20]} 24. Qg4 {[%clk 00:06:18]} {[%emt 00:00:11]} Qf5 {[%clk 00:04:21]}
{[%emt 00:00:18]} 25. Qxf5 {[%clk 00:05:36]} {[%emt 00:00:46]} gxf5 {[%clk
00:04:24]} {[%emt 00:00:02]} 26. Rcd1 {[%clk 00:04:53]} {[%emt 00:00:48]} Rxd1
{[%clk 00:03:39]} {[%emt 00:00:49]} 27. Rxd1 {[%clk 00:04:57]} Rh4 {[%clk
00:03:37]} {[%emt 00:00:08]} 28. Nd6 {[%clk 00:04:42]} {[%emt 00:00:20]} Nxd6
{[%clk 00:03:31]} {[%emt 00:00:12]} 29. Rxd6 {[%clk 00:04:45]} {[%emt
00:00:01]} Kc7 {[%clk 00:03:33]} {[%emt 00:00:03]} 30. a5 {[%clk 00:04:45]}
{[%emt 00:00:05]} Ra4 {[%clk 00:02:51]} {[%emt 00:00:48]} 31. a6 {[%clk
00:04:35]} {[%emt 00:00:14]} bxa6 {[%clk 00:02:17]} {[%emt 00:00:39]} 32. Rc6+
{[%clk 00:04:39]} Kb7 {[%clk 00:01:49]} {[%emt 00:00:33]} 33. Rxc5 {[%clk
00:04:40]} {[%emt 00:00:04]} a5 {[%clk 00:00:47]} {[%emt 00:01:07]} 34. Rc6
{[%clk 00:04:13]} {[%emt 00:00:32]} Ra1+ {[%clk 00:00:45]} {[%emt 00:00:07]} 35.
Kh2 {[%clk 00:04:16]} {[%emt 00:00:01]} Rd1 {[%clk 00:00:39]} {[%emt 00:00:11]}
36. c4 {[%clk 00:04:07]} {[%emt 00:00:15]} Rd4 {[%clk 00:00:35]} {[%emt
00:00:07]} 37. Kg3 {[%clk 00:03:18]} {[%emt 00:00:54]} a4 {[%clk 00:00:35]}
{[%emt 00:00:06]} 38. Kf3 {[%clk 00:03:21]} {[%emt 00:00:02]} a3 {[%clk
00:00:35]} {[%emt 00:00:05]} 39. Ra6 {[%clk 00:03:14]} {[%emt 00:00:12]} Rxc4
{[%clk 00:00:35]} {[%emt 00:00:05]} 40. Rxa3 {[%clk 00:03:18]} {[%emt
00:00:01]} Rc5 {[%clk 00:00:22]} {[%emt 00:00:18]} 41. Rd3 {[%clk 00:03:17]}
{[%emt 00:00:06]} Kc7 {[%clk 00:00:11]} {[%emt 00:00:17]} 42. Ra3 {[%clk
00:03:15]} {[%emt 00:00:07]} Kb8 {[%clk 00:00:11]} {[%emt 00:00:05]} 43. Rb3
{[%clk 00:02:39]} {[%emt 00:00:42]} Rxe5 {[%clk 00:00:12]} {[%emt 00:00:04]} 44.
g4 {[%clk 00:02:42]} {[%emt 00:00:01]} fxg4+ {[%clk 00:00:12]} {[%emt
00:00:05]} 45. Kxg4 {[%clk 00:02:45]} {[%emt 00:00:01]} Kb7 {[%clk 00:00:16]}
{[%emt 00:00:02]} 46. f4 {[%clk 00:02:37]} {[%emt 00:00:13]} Rd5 {[%clk
00:00:17]} {[%emt 00:00:04]} 47. Kf3 {[%clk 00:02:15]} {[%emt 00:00:27]} Kb6
{[%clk 00:00:20]} {[%emt 00:00:02]} 48. Ke4 {[%clk 00:02:18]} {[%emt 00:00:02]}
Rxb5 {[%clk 00:00:22]} {[%emt 00:00:03]} 49. Rg3 {[%clk 00:02:21]} {[%emt
00:00:02]} g6 {[%clk 00:00:26]} {[%emt 00:00:01]} 50. Rd3 {[%clk 00:02:18]}
{[%emt 00:00:08]} Kc7 {[%clk 00:00:23]} {[%emt 00:00:09]} 51. Rc3+ {[%clk
00:02:18]} {[%emt 00:00:04]} Kd6 {[%clk 00:00:26]} {[%emt 00:00:02]} 52. Rd3+
{[%clk 00:02:22]} {[%emt 00:00:01]} Ke7 {[%clk 00:00:29]} {[%emt 00:00:02]} 53.
Rc3 {[%clk 00:02:20]} {[%emt 00:00:07]} Kf6 {[%clk 00:00:31]} {[%emt 00:00:03]}
54. Rc6 {[%clk 00:02:13]} {[%emt 00:00:12]} Rb4+ {[%clk 00:00:33]} {[%emt
00:00:02]} 55. Kf3 {[%clk 00:02:16]} {[%emt 00:00:02]} a5 {[%clk 00:00:29]}
{[%emt 00:00:09]} 56. Ra6 {[%clk 00:02:20]} a4 {[%clk 00:00:33]} 57. Ra5 {[%clk
00:02:23]} {[%emt 00:00:03]} Rb3+ {[%clk 00:00:33]} {[%emt 00:00:04]} 58. Kg4
{[%clk 00:02:26]} {[%emt 00:00:01]} a3 {[%clk 00:00:36]} {[%emt 00:00:03]} 59.
h4 {[%clk 00:02:29]} {[%emt 00:00:02]} Kg7 {[%clk 00:00:37]} {[%emt 00:00:05]}
60. Ra7 {[%clk 00:02:30]} {[%emt 00:00:04]} a2 {[%clk 00:00:33]} {[%emt
00:00:08]} 61. Rxa2 {[%clk 00:02:32]} {[%emt 00:00:03]} f5+ {[%clk 00:00:37]}
{[%emt 00:00:01]} 62. Kg5 {[%clk 00:02:32]} {[%emt 00:00:05]} Rg3# {[%clk
00:00:41]} 0-1

[Event "Pervenstvo PFO 2023_Y19_Rapid"]
[Site "Samara region, Russia"]
[Date "2023.11.11"]
[Round "8.10"]
[White "Nigmadzyanov, Ruslan R."]
[Black "Nasyrov, Danil R."]
[Result "0-1"]
[TimeControl "10:5"]
[WhiteFideId "34224670"]
[BlackFideId "34290257"]
[WhiteElo "1542"]
[BlackElo "1234"]

1. e4 {[%clk 00:10:09]} e5 {[%clk 00:10:09]} {[%emt 00:00:01]} 2. Nf3 {[%clk
00:10:12]} {[%emt 00:00:01]} Nc6 {[%clk 00:10:13]} {[%emt 00:00:02]} 3. Bb5
{[%clk 00:10:16]} a6 {[%clk 00:10:17]} {[%emt 00:00:01]} 4. Ba4 {[%clk
00:10:20]} Nf6 {[%clk 00:10:20]} {[%emt 00:00:03]} 5. O-O {[%clk 00:10:24]}
{[%emt 00:00:02]} Be7 {[%clk 00:10:23]} {[%emt 00:00:01]} 6. d3 {[%clk
00:10:27]} {[%emt 00:00:03]} b5 {[%clk 00:10:27]} {[%emt 00:00:01]} 7. Bb3
{[%clk 00:10:31]} d6 {[%clk 00:10:23]} {[%emt 00:00:09]} 8. a3 {[%clk
00:10:35]} O-O {[%clk 00:10:26]} {[%emt 00:00:02]} 9. Nc3 {[%clk 00:10:39]} h6
{[%clk 00:10:11]} {[%emt 00:00:20]} 10. h3 {[%clk 00:10:30]} {[%emt 00:00:14]}
Be6 {[%clk 00:09:50]} {[%emt 00:00:27]} 11. Nd5 {[%clk 00:10:33]} {[%emt
00:00:01]} Nh7 {[%clk 00:09:46]} {[%emt 00:00:09]} 12. a4 {[%clk 00:09:48]}
{[%emt 00:00:50]} b4 {[%clk 00:09:35]} {[%emt 00:00:16]} 13. a5 {[%clk
00:09:40]} {[%emt 00:00:13]} Kh8 {[%clk 00:09:24]} {[%emt 00:00:16]} 14. Bd2
{[%clk 00:09:35]} {[%emt 00:00:10]} f5 {[%clk 00:08:47]} {[%emt 00:00:42]} 15.
Nxb4 {[%clk 00:09:20]} {[%emt 00:00:20]} Bd7 {[%clk 00:08:24]} {[%emt
00:00:29]} 16. Nd5 {[%clk 00:06:06]} {[%emt 00:03:18]} f4 {[%clk 00:08:20]}
{[%emt 00:00:09]} 17. Nh2 {[%clk 00:05:50]} {[%emt 00:00:20]} Bh4 {[%clk
00:07:55]} {[%emt 00:00:31]} 18. Qh5 {[%clk 00:05:07]} {[%emt 00:00:48]} Be8
{[%clk 00:07:42]} {[%emt 00:00:18]} 19. Qg4 {[%clk 00:04:59]} {[%emt 00:00:11]}
Bd7 {[%clk 00:07:38]} {[%emt 00:00:11]} 20. Qe2 {[%clk 00:04:30]} {[%emt
00:00:34]} Nd4 {[%clk 00:07:34]} {[%emt 00:00:10]} 21. Qd1 {[%clk 00:04:34]} f3
{[%clk 00:07:23]} {[%emt 00:00:17]} 22. g4 {[%clk 00:04:07]} {[%emt 00:00:31]}
h5 {[%clk 00:06:21]} {[%emt 00:01:07]} 23. Ba4 {[%clk 00:03:32]} {[%emt
00:00:41]} Be6 {[%clk 00:05:51]} {[%emt 00:00:35]} 24. c3 {[%clk 00:03:31]}
{[%emt 00:00:06]} Ne2+ {[%clk 00:05:53]} {[%emt 00:00:02]} 25. Kh1 {[%clk
00:03:35]} hxg4 {[%clk 00:05:47]} {[%emt 00:00:12]} 26. hxg4 {[%clk 00:03:37]}
{[%emt 00:00:02]} Qc8 {[%clk 00:05:01]} {[%emt 00:00:51]} 27. Ne3 {[%clk
00:03:25]} {[%emt 00:00:17]} Ng5 {[%clk 00:03:35]} {[%emt 00:01:31]} 28. Nf5
{[%clk 00:03:14]} {[%emt 00:00:16]} Bxf2 {[%clk 00:02:59]} {[%emt 00:00:41]} 29.
Rxf2 {[%clk 00:03:10]} {[%emt 00:00:09]} Bxf5 {[%clk 00:03:01]} {[%emt
00:00:04]} 30. exf5 {[%clk 00:02:59]} {[%emt 00:00:16]} Ng3+ {[%clk 00:03:03]}
{[%emt 00:00:03]} 31. Kg1 {[%clk 00:03:02]} Nh3# {[%clk 00:03:07]} {[%emt
00:00:02]} 0-1

[ePGN "0.1;DGT LiveChess/2.2.5"]

[Event "Pervenstvo PFO 2023_Y19_Rapid"]
[Site "Samara region, Russia"]
[Date "2023.11.11"]
[Round "9.1"]
[White "Mochalov, Dmitriy"]
[Black "Lydin, Vladislav"]
[Result "1-0"]
[TimeControl "10:5"]
[WhiteFideId "44179634"]
[BlackFideId "44195990"]
[WhiteElo "2194"]
[BlackElo "2005"]

1. d4 {[%clk 00:10:08]} {[%emt 00:00:02]} Nf6 {[%clk 00:10:09]} {[%emt
00:00:02]} 2. Nf3 {[%clk 00:10:12]} g6 {[%clk 00:10:13]} {[%emt 00:00:01]} 3.
g3 {[%clk 00:10:14]} {[%emt 00:00:03]} Bg7 {[%clk 00:10:17]} 4. Bg2 {[%clk
00:10:18]} {[%emt 00:00:01]} O-O {[%clk 00:10:20]} {[%emt 00:00:02]} 5. O-O
{[%clk 00:10:21]} {[%emt 00:00:02]} d6 {[%clk 00:10:24]} {[%emt 00:00:01]} 6.
b3 {[%clk 00:10:24]} {[%emt 00:00:02]} c6 {[%clk 00:10:17]} {[%emt 00:00:12]} 7.
Bb2 {[%clk 00:10:27]} Nbd7 {[%clk 00:10:19]} {[%emt 00:00:02]} 8. Nbd2 {[%clk
00:10:31]} {[%emt 00:00:02]} Qc7 {[%clk 00:10:22]} {[%emt 00:00:02]} 9. e3
{[%clk 00:10:26]} {[%emt 00:00:10]} e5 {[%clk 00:10:12]} {[%emt 00:00:15]} 10.
dxe5 {[%clk 00:10:14]} {[%emt 00:00:18]} dxe5 {[%clk 00:09:12]} {[%emt
00:01:04]} 11. Qe2 {[%clk 00:09:53]} {[%emt 00:00:25]} Re8 {[%clk 00:09:03]}
{[%emt 00:00:15]} 12. Rad1 {[%clk 00:09:51]} {[%emt 00:00:08]} b5 {[%clk
00:08:53]} {[%emt 00:00:15]} 13. Ng5 {[%clk 00:09:49]} {[%emt 00:00:07]} h6
{[%clk 00:08:37]} {[%emt 00:00:20]} 14. Nge4 {[%clk 00:09:52]} {[%emt
00:00:03]} a5 {[%clk 00:08:30]} {[%emt 00:00:11]} 15. c4 {[%clk 00:09:44]}
{[%emt 00:00:13]} b4 {[%clk 00:08:12]} {[%emt 00:00:23]} 16. Qf3 {[%clk
00:09:41]} {[%emt 00:00:09]} Bb7 {[%clk 00:07:44]} {[%emt 00:00:32]} 17. c5
{[%clk 00:09:15]} {[%emt 00:00:31]} Nd5 {[%clk 00:07:40]} {[%emt 00:00:09]} 18.
Nd6 {[%clk 00:09:05]} {[%emt 00:00:15]} Re7 {[%clk 00:07:35]} {[%emt 00:00:11]}
19. e4 {[%clk 00:09:02]} {[%emt 00:00:09]} N5f6 {[%clk 00:06:25]} {[%emt
00:01:14]} 20. N2c4 {[%clk 00:08:48]} {[%emt 00:00:20]} Ba6 {[%clk 00:05:50]}
{[%emt 00:00:40]} 21. Qe3 {[%clk 00:08:30]} {[%emt 00:00:23]} Ng4 {[%clk
00:05:47]} {[%emt 00:00:07]} 22. Qe2 {[%clk 00:08:33]} {[%emt 00:00:02]} Ngf6
{[%clk 00:05:29]} {[%emt 00:00:23]} 23. f4 {[%clk 00:08:01]} {[%emt 00:00:37]}
exf4 {[%clk 00:04:55]} {[%emt 00:00:38]} 24. Rxf4 {[%clk 00:07:55]} {[%emt
00:00:12]} Nd5 {[%clk 00:04:11]} {[%emt 00:00:49]} 25. Rxf7 {[%clk 00:07:25]}
{[%emt 00:00:35]} Rxf7 {[%clk 00:03:29]} {[%emt 00:00:47]} 26. exd5 {[%clk
00:07:28]} {[%emt 00:00:02]} Bxc4 {[%clk 00:02:26]} {[%emt 00:01:08]} 27. Qxc4
{[%clk 00:07:23]} {[%emt 00:00:09]} Bxb2 {[%clk 00:02:17]} {[%emt 00:00:14]} 28.
Nxf7 {[%clk 00:07:27]} {[%emt 00:00:02]} Nf6 {[%clk 00:01:17]} {[%emt
00:01:05]} 29. dxc6 {[%clk 00:06:26]} {[%emt 00:01:06]} Qxf7 {[%clk 00:01:12]}
{[%emt 00:00:10]} 30. c7 {[%clk 00:06:29]} {[%emt 00:00:02]} Re8 {[%clk
00:00:25]} {[%emt 00:00:53]} 31. Rd8 {[%clk 00:06:26]} {[%emt 00:00:07]} Bd4+
{[%clk 00:00:19]} {[%emt 00:00:11]} 32. Kh1 {[%clk 00:06:07]} {[%emt 00:00:24]}
Kg7 {[%clk 00:00:06]} {[%emt 00:00:19]} 33. Qxf7+ {[%clk 00:06:10]} {[%emt
00:00:01]} Kxf7 {[%clk 00:00:10]} {[%emt 00:00:02]} 34. Rxe8 {[%clk 00:06:14]}
1-0

[Event "Pervenstvo PFO 2023_Y19_Rapid"]
[Site "Samara region, Russia"]
[Date "2023.11.11"]
[Round "9.2"]
[White "Tarasenko, Iaroslav"]
[Black "Konstantinov, Nikita"]
[Result "1-0"]
[TimeControl "10:5"]
[WhiteFideId "44196008"]
[BlackFideId "44165250"]
[WhiteElo "2080"]
[BlackElo "2074"]

1. e4 {[%clk 00:10:09]} e5 {[%clk 00:10:08]} {[%emt 00:00:03]} 2. Nf3 {[%clk
00:10:13]} Nc6 {[%clk 00:10:08]} {[%emt 00:00:06]} 3. d4 {[%clk 00:09:55]}
{[%emt 00:00:23]} exd4 {[%clk 00:10:10]} {[%emt 00:00:03]} 4. Bc4 {[%clk
00:09:59]} Nf6 {[%clk 00:09:54]} {[%emt 00:00:21]} 5. e5 {[%clk 00:10:03]}
{[%emt 00:00:01]} d5 {[%clk 00:09:48]} {[%emt 00:00:11]} 6. Bb5 {[%clk
00:10:07]} {[%emt 00:00:01]} Ne4 {[%clk 00:09:43]} {[%emt 00:00:10]} 7. Nxd4
{[%clk 00:10:03]} {[%emt 00:00:08]} Bd7 {[%clk 00:09:32]} {[%emt 00:00:16]} 8.
Bxc6 {[%clk 00:10:07]} {[%emt 00:00:02]} bxc6 {[%clk 00:09:36]} {[%emt
00:00:01]} 9. O-O {[%clk 00:10:10]} {[%emt 00:00:01]} Bc5 {[%clk 00:08:26]}
{[%emt 00:01:15]} 10. f3 {[%clk 00:10:14]} {[%emt 00:00:01]} Ng5 {[%clk
00:08:30]} 11. f4 {[%clk 00:10:19]} Ne4 {[%clk 00:08:24]} {[%emt 00:00:11]} 12.
Be3 {[%clk 00:10:22]} {[%emt 00:00:02]} O-O {[%clk 00:07:52]} {[%emt 00:00:37]}
13. Nd2 {[%clk 00:10:14]} {[%emt 00:00:12]} Bxd4 {[%clk 00:06:53]} {[%emt
00:01:05]} 14. Bxd4 {[%clk 00:10:17]} {[%emt 00:00:02]} Nxd2 {[%clk 00:06:52]}
{[%emt 00:00:06]} 15. Qxd2 {[%clk 00:10:21]} Bf5 {[%clk 00:06:55]} {[%emt
00:00:02]} 16. h3 {[%clk 00:07:59]} {[%emt 00:02:27]} Be4 {[%clk 00:06:47]}
{[%emt 00:00:13]} 17. f5 {[%clk 00:07:07]} {[%emt 00:00:57]} Qh4 {[%clk
00:05:42]} {[%emt 00:01:09]} 18. f6 {[%clk 00:06:58]} {[%emt 00:00:15]} Rfe8
{[%clk 00:05:08]} {[%emt 00:00:38]} 19. Rf4 {[%clk 00:06:15]} {[%emt 00:00:47]}
Qg5 {[%clk 00:04:50]} {[%emt 00:00:23]} 20. Qf2 {[%clk 00:05:42]} {[%emt
00:00:39]} h5 {[%clk 00:04:40]} {[%emt 00:00:14]} 21. fxg7 {[%clk 00:05:09]}
{[%emt 00:00:38]} Re7 {[%clk 00:02:44]} {[%emt 00:02:01]} 22. Rf1 {[%clk
00:04:23]} {[%emt 00:00:51]} Bg6 {[%clk 00:02:07]} {[%emt 00:00:42]} 23. h4
{[%clk 00:04:01]} {[%emt 00:00:28]} Qh6 {[%clk 00:02:11]} 24. Rf6 {[%clk
00:04:05]} Qxg7 {[%clk 00:00:34]} {[%emt 00:01:42]} 25. e6 {[%clk 00:03:55]}
{[%emt 00:00:15]} Qh7 {[%clk 00:00:10]} {[%emt 00:00:29]} 26. exf7+ {[%clk
00:03:28]} {[%emt 00:00:31]} Rxf7 {[%clk 00:00:12]} {[%emt 00:00:04]} 27. Qg3
{[%clk 00:03:32]} {[%emt 00:00:01]} Rg7 {[%clk 00:00:07]} {[%emt 00:00:10]} 28.
Rxc6 {[%clk 00:03:33]} {[%emt 00:00:04]} Be4 {[%clk 00:00:07]} {[%emt
00:00:05]} 29. Bxg7 {[%clk 00:03:35]} {[%emt 00:00:03]} Qxg7 {[%clk 00:00:11]}
30. Qxg7+ {[%clk 00:03:31]} {[%emt 00:00:09]} Kxg7 {[%clk 00:00:15]} 31. Rxc7+
{[%clk 00:03:35]} Kg6 {[%clk 00:00:18]} {[%emt 00:00:01]} 32. Rff7 {[%clk
00:02:27]} {[%emt 00:01:13]} Rb8 {[%clk 00:00:17]} {[%emt 00:00:07]} 33. b3
{[%clk 00:02:27]} {[%emt 00:00:05]} a5 {[%clk 00:00:18]} {[%emt 00:00:03]} 34.
Rb7 {[%clk 00:02:12]} {[%emt 00:00:21]} Rc8 {[%clk 00:00:19]} {[%emt 00:00:04]}
35. Rfc7 {[%clk 00:02:15]} {[%emt 00:00:02]} Rg8 {[%clk 00:00:19]} {[%emt
00:00:04]} 36. Kf2 {[%clk 00:01:26]} {[%emt 00:00:54]} Kf6 {[%clk 00:00:20]}
{[%emt 00:00:05]} 37. g3 {[%clk 00:01:29]} {[%emt 00:00:02]} Ke6 {[%clk
00:00:17]} {[%emt 00:00:07]} 38. Ra7 {[%clk 00:01:20]} {[%emt 00:00:14]} Rf8+
{[%clk 00:00:15]} {[%emt 00:00:07]} 39. Ke2 {[%clk 00:01:20]} {[%emt 00:00:04]}
Rf3 {[%clk 00:00:14]} {[%emt 00:00:07]} 40. Rg7 {[%clk 00:01:18]} {[%emt
00:00:07]} Ke5 {[%clk 00:00:13]} {[%emt 00:00:06]} 41. Rxa5 {[%emt 00:00:24]}
Rc3 {[%clk 00:00:15]} {[%emt 00:00:02]} 42. Re7+ {[%clk 00:00:38]} {[%emt
00:00:28]} Kf5 {[%clk 00:00:13]} {[%emt 00:00:07]} 43. Raa7 {[%clk 00:00:18]}
{[%emt 00:00:25]} Rxc2+ {[%clk 00:00:10]} {[%emt 00:00:08]} 44. Kd1 {[%clk
00:00:21]} Rg2 {[%clk 00:00:11]} {[%emt 00:00:04]} 45. Rg7 {[%clk 00:00:10]}
{[%emt 00:00:17]} Ke5 {[%clk 00:00:13]} {[%emt 00:00:02]} 46. Ra4 {[%clk
00:00:10]} {[%emt 00:00:06]} Bf3+ {[%clk 00:00:12]} {[%emt 00:00:07]} 47. Kc1
{[%clk 00:00:10]} {[%emt 00:00:05]} Rh2 {[%clk 00:00:07]} {[%emt 00:00:09]} 48.
Rg5+ {[%clk 00:00:13]} {[%emt 00:00:01]} Kd6 {[%clk 00:00:10]} {[%emt
00:00:03]} 49. b4 {[%clk 00:00:08]} {[%emt 00:00:10]} Kc6 {[%clk 00:00:09]}
{[%emt 00:00:06]} 50. Ra5 {[%clk 00:00:11]} {[%emt 00:00:02]} Be4 {[%clk
00:00:12]} {[%emt 00:00:01]} 51. Rc5+ {[%clk 00:00:13]} {[%emt 00:00:03]} Kd6
{[%clk 00:00:14]} {[%emt 00:00:03]} 52. a4 {[%clk 00:00:14]} {[%emt 00:00:04]}
Ra2 {[%clk 00:00:09]} {[%emt 00:00:11]} 53. a5 {[%clk 00:00:16]} {[%emt
00:00:04]} Bf3 {[%clk 00:00:07]} {[%emt 00:00:06]} 54. Rb5 {[%clk 00:00:13]}
{[%emt 00:00:07]} d4 {[%clk 00:00:07]} {[%emt 00:00:06]} 55. Rb6+ {[%clk
00:00:16]} {[%emt 00:00:01]} Kc7 {[%clk 00:00:10]} {[%emt 00:00:02]} 56. Rc5+
{[%clk 00:00:15]} {[%emt 00:00:06]} Kd7 {[%clk 00:00:14]} {[%emt 00:00:02]} 57.
Rc4 {[%clk 00:00:16]} {[%emt 00:00:03]} d3 {[%clk 00:00:11]} {[%emt 00:00:09]}
58. Rd4+ {[%clk 00:00:20]} {[%emt 00:00:01]} Kc7 {[%clk 00:00:15]} {[%emt
00:00:01]} 59. Rxd3 {[%clk 00:00:22]} {[%emt 00:00:03]} Be4 {[%clk 00:00:18]}
{[%emt 00:00:02]} 60. Rc3+ {[%clk 00:00:25]} {[%emt 00:00:02]} Kd7 {[%clk
00:00:21]} {[%emt 00:00:01]} 61. Rc5 {[%clk 00:00:26]} {[%emt 00:00:04]} 1-0